Cogmind - Beta 13 @@@ ROGUE MODE // 2024.08.02 @ 21:22:04 Player: raftar Result: Destroyed by G-34 Mercenary with Small Laser Performance ------------- Evolutions (0) 0 Regions Visited (1) 200 Robots Destroyed (14) 70 Value Destroyed (284) 284 Prototype IDs (0) 0 Alien Tech Used (0) 0 Bonus (0) 0 TOTAL SCORE: 554 Bonus ------- None Cogmind --------- Core Integrity 0/250 Matter 300/300 Energy 250/250 System Corruption 0% Temperature Cool (6) Movement Core (300) Ox5 Location -10/Materials Parts ------- > --- POWER (1) -------- Ion Engine > --- PROPULSION (2) --- (None) > --- UTILITY (2) ------ Medium Storage Unit Transport Network Coupler > --- WEAPON (2) ------- Light Assault Rifle > --- INVENTORY (10) --- Ion Engine Light Ion Engine Light Nuclear Core Wheel Wheel Improved Heat Sink Signal Interpreter Weapon Shielding Peak State ------------ > --- POWER ------------ Ion Engine > --- PROPULSION ------- Wheel Compact Wheel > --- UTILITY ---------- Small Storage Unit Seismic Detector > --- WEAPON ----------- Small Laser Light Assault Rifle > --- INVENTORY -------- Ion Engine Light Nuclear Core Wheel Wheel Improved Heat Sink EM Pulse Gun [Rating: 8] Favorites ----------- Power Ion Engine Engine Ion Engine Propulsion Compact Wheel Wheel Compact Wheel Utility Small Storage Unit Device Seismic Detector Storage Small Storage Unit Processor Transport Network Coupler Weapon Small Laser Energy Gun Small Laser Ballistic Gun Light Assault Rifle Special Melee Weapon Datajack Build | -11 -10 ------- Run | Yrd Mat Slots Evolved . | . . Power . | . . Propulsion . | . . Utility . | . . Weapon . | . . Parts Attached 14 | 7 7 Power 2 | 1 1 Engine 2 | 1 1 Core . | . . Reactor . | . . Propulsion 3 | 2 1 Treads . | . . Leg . | . . Wheel 3 | 2 1 Hover . | . . Flight . | . . Utility 4 | 2 2 Device 1 | 1 . Storage 2 | 1 1 Processor 1 | . 1 Hackware . | . . Protection . | . . Artifact . | . . Weapon 5 | 2 3 Energy Gun 2 | 1 1 Energy Cannon . | . . Ballistic Gun 2 | 1 1 Ballistic Cannon . | . . Launcher . | . . Special Weapon . | . . Impact Weapon . | . . Slashing Weapon . | . . Piercing Weapon . | . . Special Melee Weapon 1 | . 1 Unidentified Prototypes . | . . Parts Lost 6 | . 6 Power 1 | . 1 Propulsion 2 | . 2 Utility . | . . Weapon 3 | . 3 Highest Loss Streak 5 | . 5 To Critical Strikes . | . . Average Slot Usage (%) 95 | . 95 Engine 12 | . 12 Wheel 26 | . 26 Device 4 | . 4 Storage 14 | . 14 Processor 9 | . 9 Energy Gun 18 | . 18 Ballistic Gun 7 | . 7 Naked Turns . | . . Heaviest Build 18 | 13 18 Greatest Support 26 | 26 26 Greatest Overweight (x) 5 | . 5 Average Overweight (x) . | . . Largest Inventory Capacity 10 | 8 10 Average Capacity 8 | 7 8 Most Carried 9 | 5 9 Average Carried 5 | 3 6 Final Capacity 10 | 8 10 Final Carried 8 | 4 8 Class Distribution -------------------- 100% | Mutant Dominant Class ---------------- Mutant | -10/Materials Resources | -11 -10 ----------- Run | Yrd Mat Matter Collected 364 | 273 91 Remotely . | . . Salvage Created 513 | 108 405 Parts 32 | 6 26 Haulers Intercepted 1 | . 1 Recyclers Shooed . | . . Parts Field Recycled . | . . Retrieved Matter . | . . Parts Self-Destructed . | . . Prevented . | . . Kills | -11 -10 ------- Run | Yrd Mat Combat Hostiles Destroyed 8 | . 8 Guns 6 | . 6 AOE 2 | . 2 Classes Destroyed 8 | 2 6 Worker 1 | . 1 Builder 1 | . 1 Tunneler 1 | 1 . Hauler 1 | . 1 Recycler 1 | 1 . Watcher 1 | . 1 Swarmer 2 | . 2 Grunt 6 | . 6 Best Kill Streak 4 | 2 4 Combat Bots Only 3 | . 3 Max Kills in Single Turn 3 | 1 3 Gunslinging . | . . Exploded 2 | . 2 Melee . | . . Uniques/NPCs Destroyed . | . . Combat | -11 -10 -------- Run | Yrd Mat Hostile Shots Fired 88 | . 88 Missed 22 | . 22 Damage Taken 766 | . 766 Core 253 | . 253 Absorbed by Shields . | . . Core Remaining (%) 100 | 100 . Volleys Fired 46 | 3 43 Largest 2 | 2 2 Hottest 80 | 60 80 Shots Fired 84 | 6 78 Gun 84 | 6 78 Cannon . | . . Launcher . | . . Special . | . . Kinetic 34 | 3 31 Thermal 38 | 3 35 Explosive . | . . Electromagnetic 12 | . 12 Robot Hit Streak 8 | 3 8 Robot Miss Streak 3 | 2 3 Penetration Max . | . . Secondary Targets 3 | . 3 Max Gunslinging Chain 1 | . 1 Shots Hit Robots 57 | 3 54 Core Hits 25 | 3 22 Critical Kills . | . . Critical Parts Destroyed . | . . Critical Strikes . | . . Melee Attacks 1 | . 1 Impact . | . . Slashing . | . . Piercing . | . . Sneak Attacks . | . . Combat Hostiles . | . . Follow-up Attacks . | . . Damage Inflicted 668 | 31 637 Guns 545 | 31 514 Cannons . | . . Explosions 123 | . 123 Melee . | . . Ramming . | . . Kinetic 181 | 8 173 Thermal 407 | 23 384 Explosive . | . . Electromagnetic 80 | . 80 Impact . | . . Slashing . | . . Piercing . | . . Highest Corruption . | . . Average Corruption . | . . Corruption Purged . | . . Corruption Blocked . | . . Overload Shots . | . . Overflow Damage . | . . Projectiles . | . . Explosions . | . . Melee . | . . Knockbacks . | . . Impact . | . . Kinetic . | . . Secondary . | . . Self-Inflicted Damage 8 | . 8 Shots 1 | . 1 Rammed . | . . Targets Rammed . | . . Kicked . | . . Crushed . | . . Highest Temperature 164 | 40 164 Average Temperature 51 | 21 52 Received Heat Transfer 384 | . 384 Siege Activations . | . . Robots Corrupted . | . . Combat Hostiles . | . . Parts Fried . | . . Impact Corruptions . | . . Robots Melted . | . . Combat Hostiles . | . . Parts Melted . | . . Heat Transferred 850 | 50 800 Parts Sabotaged . | . . Parts Stolen . | . . Parts Stripped . | . . Power Chain Reactions 1 | . 1 Alert | -11 -10 ------- Run | Yrd Mat Peak Influence 248 | 10 248 Initial 6 | . 6 Average 92 | 4 108 Maximum Alert Level 1 | . 1 Low Security (%) 93 | 100 92 Level 1 6 | . 7 Level 2 . | . . Level 3 . | . . Level 4 . | . . Level 5 . | . . High Security . | . . Max Security . | . . Squads Dispatched 2 | . 2 Investigation . | . . Extermination . | . . Reinforcement 2 | . 2 Assault . | . . Garrison . | . . Intercept . | . . Searches Triggered . | . . Construction Impeded . | . . Haulers Reinforced . | . . Active Scanning Responses . | . . Cargo Convoy Interrupts . | . . Stealth | -11 -10 --------- Run | Yrd Mat Distress Signals 1 | . 1 Communications Jammed . | . . Distress Signals . | . . Times Spotted 16 | . 16 Peak Tracking Total 8 | . 8 Tactical Retreats 1 | . 1 Traps | -11 -10 ------- Run | Yrd Mat Traps Triggered . | . . Indirectly . | . . Trap Hack Attempts . | . . Triggered . | . . Disarmed . | . . Reprogrammed . | . . Reused . | . . Traps Extracted . | . . Installed . | . . Triggered . | . . Machines | -11 -10 ---------- Run | Yrd Mat Machines Disabled 1 | . 1 Max in Single Turn 1 | . 1 Machines Repaired . | . . Machines Dismantled . | . . Machines Sabotaged . | . . Overloaded Fab Kills . | . . Hacking | -11 -10 --------- Run | Yrd Mat Machines Accessed . | . . Terminals . | . . Fabricators . | . . Repair Stations . | . . Recycling Units . | . . Scanalyzers . | . . Garrison Access . | . . Total Hacks . | . . Successful . | . . Failed . | . . Catastrophic . | . . Database Lockouts . | . . Manual . | . . Terminals . | . . Fabricators . | . . Repair Stations . | . . Recycling Units . | . . Scanalyzers . | . . Garrison Access . | . . Terminal Hacks . | . . Fabricator Hacks . | . . Repair Station Hacks . | . . Recycling Unit Hacks . | . . Scanalyzer . | . . Garrison Access Hacks . | . . Unauthorized Hacks . | . . Terminals . | . . Fabricators . | . . Repair Stations . | . . Recycling Units . | . . Scanalyzers . | . . Garrison Access . | . . Data Cores Recovered . | . . Used . | . . Hacking Detections . | . . Full Trace Events . | . . Feedback Events . | . . Feedback Blocked . | . . Robot Schematics Acquired . | . . Robots Built . | . . Authchips . | . . Time . | . . Total Robot Build Rating . | . . Part Schematics Acquired . | . . Parts Built . | . . Authchips . | . . Time . | . . Total Part Build Rating . | . . Parts Repaired . | . . Time . | . . Parts Recycled . | . . Recycled Matter . | . . Retrieved Matter . | . . Retrieved Components . | . . Parts Scanalyzed . | . . Part Schematics Acquired . | . . Parts Damaged . | . . Bothacking | -11 -10 ------------ Run | Yrd Mat Used RIF Installer . | . . Robots Hacked 1 | . 1 Non-combat . | . . Combat 1 | . 1 Robot Hacks Applied 1 | . 1 parse_system 1 | . 1 Relay Couplers Released . | . . Fabnet Peak Effective % . | . . Robots Rewired . | . . Allies Hacked . | . . Hacks Repelled . | . . Allies | -11 -10 -------- Run | Yrd Mat Total Allies . | . . Largest Group . | . . Highest-Rated Group . | . . Highest-Rated Ally . | . . Total Orders . | . . Ally Attacks . | . . Total Damage . | . . Kills . | . . Allies Corrupted . | . . Allies Melted . | . . Intel | -11 -10 ------- Run | Yrd Mat Robot Analysis Total . | . . Derelict Logs Recovered . | . . Drone Launches . | . . Drone Recoveries . | . . Exploration | -11 -10 ------------- Run | Yrd Mat Turns Passed 435 | 69 366 Spaces Moved 273 | 55 218 Core 14 | 13 1 Treads . | . . Legs . | . . Wheels 259 | 42 217 Hover . | . . Flight . | . . Fastest Speed 50 | 50 90 Average Speed 89 | 80 91 Slowest Speed 300 | 90 300 Overloaded Moves . | . . Propulsion Burnouts . | . . Robots Hopped . | . . Cave-ins Triggered . | . . Exploration Rate (%) 18 | 3 34 Regions Visited 1 Branch Regions . Pre-discovered Areas . | . . Known Exits Taken . | . . Unknown Exits Taken 1 | 1 . Scrap Searched . | . . Spaces Dug . | . . Terrain Destroyed 2 | . 2 Melee . | . . Projectile . | . . AOE 2 | . 2 Terrain Rammed . | . . Walls Destroyed . | . . Machines Disabled . | . . Actions | -11 -10 --------- Run | Yrd Mat Total 387 | 73 314 Wait 30 | . 30 Move 272 | 54 218 Hop . | . . Pick Up 20 | 9 11 Fast Attach 2 | 2 . Attach 9 | 5 4 Detach . | . . Swap 3 | . 3 Drop 4 | . 4 Fire 46 | 3 43 Melee 1 | . 1 Ram . | . . Kick . | . . Crush . | . . Escape Stasis . | . . Rewire . | . . Trap . | . . Miscellaneous . | . . Route ------- -11/Scrapyard -10/Materials (discovered 1 exit: [*Min]) History --------- Turn | Location | Event 13 | -11/Scrapyard | Discovered new exit (range 16) 70 | -11/Scrapyard | Entered Materials 317 | -10/Materials | Build established: Mutant 383 | -10/Materials | Discovered new exit (range 9) 386 | -10/Materials | Core integrity fell below 50% 425 | -10/Materials | Core integrity fell below 20% 436 | -10/Materials | Destroyed by G-34 Mercenary with Small Laser Last Messages --------------- 00422_ Jacked G-34 Mercenary... >>parse_system Reading system data... 00425_ R-06 Scavenger collects Flight Unit. 00425_ K-01 Serf collects debris. 00426_ Acquired Lgt. Ion Engine. 00426_ U-05 Engineer lays Concrete. 00427_ Acquired 10 matter. 00428_ K-01 Serf collects debris. 00429_ Datajack destroyed. 00429_ Acquired Lgt. Assault Rifle. 00431_ G-34 Mercenary destroyed. 00431_ K-01 Serf collects debris. 00431_ R-06 Scavenger collects Sml. Laser. 00431_ K-01 Serf collects debris. 00432_ Com. Wheel destroyed. 00434_ K-01 Serf collects debris. 00434_ Acquired 7 matter. 00434_ K-01 Serf collects debris. 00435_ R-06 Scavenger collects Aluminum Leg. Map ----- +----------------------------------------------------+ | # ##########+####?????????????????????????? | | " # #"T"##### #??????????????????????????? | | " + #??????????????????????????? | | # #??????????????????????????? | | = # #??????????????????????????? | | = ##### #??????????????????????????? | | ####???# " """"" #??????????????????????????? | | ???????# """"""""" #??????????????????????????? | | ???????# """ """ #??????????????????????????? | | ???????# #??????????????????????????? | | ???????# #?????#######??????????????? | | ???????# " """"" ##### ##?????????????? | | ???????+ """"""""" ???????????? | | ???????# """ """ < ???????????? | | ???????# ???????????? | | ???????# ##### ###????????????? | | ???????# " """"" #?????"!"|" #??????????????? | | ???????? """"""""" #??????!"|""???????????????? | | ???????# """ """ ###########????????????????? | | ???????# ^ # ??????????????????? | | ???????# o # """ #?????????????????? | | ??????# " """"" # """"" #?????????????????? | | ????????? """"""""" u# """ #?????????????????? | | ???????????""" """ gk """ #?????????????????? | | ????????? u;% *"" #?????????????????? | | ??????? k ;r%@= #?????????????????? | | ????????##T####### ##g ! "T" #?????????????????? | | ?????????????????# ?#! #?????????????????? | | ?????????????????# ?##########?????????????????? | | ?????????????????# ????????????????????????????? | | ?????????????????# ????????????????????????????? | | ????????????????? ????????????????????????????? | | ????????????????# ????????????????????????????? | | ????????????????# T ????????????????????????????? | | ????????????????# ?????????????????????????????? | | ????????????????# ?????????????????????????????? | | ?????????????????#? ?????????????????????????????? | | ??????????????????? ?????????????????????????????? | | ?????????????????????????????????????????????????? | | ?????????????????????????????????????????????????? | | ?????????????????????????????????????????????????? | | ?????????????????????????????????????????????????? | | ?????????????????????????????????????????????????? | | ?????????????????????????????????????????????????? | | ?????????????????????????????????????????????????? | | ?????????????????????????????????????????????????? | | ?????????????????????????????????????????????????? | | ?????????????????????????????????????????????????? | | ?????????????????????????????????????????????????? | | ?????????????????????????????????????????????????? | +----------------------------------------------------+ Best States ------------- Heat Dissipation 25 Energy Generation 10 Energy Capacity 250 Matter Stores 300 Matter Capacity 300 Sight Range 16 Terrain Scan Density 10 Evasion (%) 50 Item Schematics ----------------- None Robot Schematics ------------------ None Fabricated ------------ Nothing Alien Tech Used ----------------- None Achievements -------------- None Challenges ------------ None Game ------ Seed GunSwordArchive Manual? 0 Play Time 00:07:05 Cumulative 8.0 hours Start 2024.08.02 @ 21:16:16 End 2024.08.02 @ 21:22:04 Sessions 1 Manual Loads 0 Difficulty Rogue Special Mode None Game No. 13 Rogue 13 Adventurer 0 Explorer 0 Win Type - Total 0 Types 0/0/0/0/0/0/0/0/0 Lore% 7 Gallery% 14 Achievement% 14 Wizard Run 0 Options --------- Layout 1 ASCII 0 Keyboard 0 Movement Mouse Keybinds 0 Fullscreen 1 Font 24/Smallcaps Map View 76x35 Zoom Use 0% Tactical HUD 1 Map Filters NONE Filters NONE Steam 1 RUN: a036a53b-8023-4f5f-8a5f-8babdb4e82b2